bitfinex/quotes_SOLUSD_20250815
["timestamp","ask_amount","ask_price","bid_price","bid_amount"]
[1755249730002,39.2572695,196.25,196.24,0.03]
[1755249730197,39.2572695,196.25,196.24,5.26591335]
[1755249731087,39.9372695,196.25,196.24,0.03]
[1755249731293,39.9372695,196.25,196.24,5.26591335]
[1755249734316,39.2572695,196.25,196.24,5.26591335]
[1755249735790,39.9372695,196.25,196.24,0.03]
[1755249736310,39.8972695,196.25,196.24,0.03]
[1755249736516,44.9928109,196.25,196.24,0.03]
[1755249737914,48.76811513,196.25,196.24,0.03]
[1755249738100,78.76811513,196.25,196.24,0.03]
[1755249738405,99.11024405,196.25,196.24,0.03]
[1755249738609,103.33127968,196.25,196.24,0.03]
[1755249738802,82.98915076,196.25,196.24,0.03]
[1755249738997,103.33127968,196.25,196.24,0.03]
[1755249739516,82.98915076,196.25,196.24,0.03]
[1755249739808,47.22915076,196.25,196.24,0.03]
[1755249740015,82.98915076,196.25,196.24,0.03]
[1755249741415,78.76811513,196.25,196.24,0.03]
[1755249745525,80.22872425,196.25,196.24,0.03]
[1755249746523,84.44975988,196.25,196.24,0.03]
[1755249746824,99.55597545,196.25,196.24,0.03]
[1755249747122,69.55597545,196.25,196.24,0.03]
[1755249747301,65.33493982,196.25,196.24,0.03]
[1755249747508,15.10621557,196.24,196.22,0.03]
[1755249747808,40.99591335,196.23,196.22,0.03]
[1755249748121,41.67591335,196.23,196.22,0.03]
[1755249748510,46.09197409,196.23,196.22,0.03]
[1755249748704,46.77197409,196.23,196.22,0.03]
[1755249748911,50.16924359,196.23,196.22,0.03]
[1755249749807,44.93333024,196.23,196.22,0.03]
[1755249750134,79.17682027,196.23,196.22,0.03]
[1755249750939,84.41273362,196.23,196.22,0.03]
[1755249752337,88.1848063,196.23,196.22,0.03]
[1755249752812,83.94131627,196.23,196.22,0.03]
[1755249755623,78.70540292,196.23,196.22,0.03]
[1755249755930,83.94131627,196.23,196.22,0.03]
[1755249756330,48.18131627,196.23,196.22,0.03]
[1755249756545,83.94131627,196.23,196.22,0.03]
[1755249756716,53.94131627,196.23,196.22,0.03]
[1755249757236,48.70540292,196.23,196.22,0.03]
[1755249757435,53.94131627,196.23,196.22,0.03]
[1755249757737,50.16924359,196.23,196.22,0.03]
[1755249758117,44.93333024,196.23,196.22,0.03]
[1755249758325,44.25333024,196.23,196.22,0.03]
[1755249759639,74.25333024,196.23,196.22,0.03]
[1755249759949,74.97333024,196.23,196.22,0.03]
[1755249762141,80.20924359,196.23,196.22,0.03]
[1755249763920,79.48924359,196.23,196.22,0.03]
[1755249764142,43.72924359,196.23,196.22,0.03]
[1755249764444,79.48924359,196.23,196.22,0.03]
[1755249765442,69.1572695,196.23,196.22,0.72]
[1755249766338,39.1572695,196.23,196.22,0.72]
[1755249768829,3.3972695,196.23,196.22,5.95591335]
[1755249769026,39.1572695,196.23,196.22,11.0522338]
[1755249771054,39.1572695,196.23,196.22,5.81632045]
[1755249771264,39.1572695,196.23,196.22,11.0522338]
[1755249772272,3.3972695,196.23,196.22,11.19439537]
[1755249772443,39.1572695,196.23,196.22,11.19439537]
[1755249772642,0.06,196.26,196.25,0.14216157]
[1755249772847,0.06,196.27,196.26,15.10621557]
[1755249773071,0.06,196.27,196.26,21.03212892]
[1755249773777,0.06,196.27,196.26,26.12741068]
[1755249775074,0.06,196.27,196.26,37.02119511]
[1755249775271,35.82,196.27,196.25,5.23591335]
[1755249775665,35.82,196.27,196.26,5.23591335]
[1755249776742,35.82,196.27,196.24,0.69]
[1755249776945,35.82,196.27,196.26,5.23591335]
[1755249778876,35.82,196.27,196.26,8.18077963]
[1755249779677,35.8,196.27,196.26,8.18077963]
[1755249780275,35.8,196.27,196.24,0.69]
[1755249780577,0.72,196.26,196.23,8.18077963]
[1755249780777,0.72,196.25,196.22,0.03]
[1755249780970,35.74,196.24,196.22,0.03]
[1755249781681,0.69,196.23,196.22,0.03]
[1755249782376,5.78606074,196.23,196.22,0.03]
[1755249783271,13.96684037,196.23,196.22,0.03]
[1755249785475,17.3543856,196.23,196.22,0.03]
[1755249786392,47.3543856,196.23,196.22,0.03]
[1755249786790,62.46060117,196.23,196.22,0.03]
[1755249787088,62.60276274,196.23,196.22,0.03]
[1755249787395,72.60276274,196.23,196.22,0.03]
[1755249788079,76.84625277,196.23,196.22,0.03]
[1755249788488,80.46740454,196.23,196.22,0.03]
[1755249788691,47.18040934,196.23,196.22,0.03]
[1755249789067,82.94040934,196.23,196.22,0.03]
[1755249789275,78.69691931,196.23,196.22,0.03]
[1755249789797,86.87769894,196.23,196.22,0.03]
[1755249791977,83.1143856,196.23,196.22,0.03]
[1755249794172,74.93360597,196.23,196.22,0.03]
[1755249794373,82.4243856,196.23,196.22,0.03]
[1755249794794,52.4243856,196.23,196.22,0.03]
[1755249797773,3.38754523,196.23,196.22,0.03]
[1755249797978,3.38754523,196.23,196.22,8.88077963]
[1755249798180,39.14754523,196.23,196.22,8.88077963]
[1755249798402,39.14754523,196.23,196.22,0.7]
[1755249799099,35.76,196.23,196.22,0.7]
[1755249799501,35.76,196.23,196.22,0.03]
[1755249800898,35.76,196.23,196.22,0.7]
[1755249801403,39.14802185,196.23,196.22,0.7]
[1755249801902,44.24408259,196.23,196.22,0.7]
[1755249802200,39.14802185,196.23,196.22,0.7]
[1755249802400,44.24408259,196.23,196.22,0.7]
[1755249802798,39.14802185,196.23,196.22,0.7]
[1755249808206,44.24408259,196.23,196.22,0.03]
[1755249808409,53.11987863,196.23,196.22,0.03]
[1755249808579,68.2260942,196.23,196.22,0.03]
[1755249808784,70.18245973,196.23,196.22,0.03]
[1755249808990,108.36825577,196.23,196.22,0.03]
[1755249810612,23.29201161,196.21,196.2,0.03]
[1755249810825,89.05201161,196.21,196.2,0.03]
[1755249811113,89.70201161,196.21,196.2,0.03]
[1755249811525,93.46301818,196.21,196.2,0.03]
[1755249811824,89.70201161,196.21,196.2,0.03]
[1755249812528,94.7985918,196.21,196.2,0.03]
[1755249813915,98.90700448,196.21,196.2,0.03]
[1755249814214,94.7985918,196.21,196.2,0.03]
[1755249815097,98.18180799,196.21,196.2,0.03]
[1755249816922,68.18180799,196.21,196.2,0.03]
[1755249820039,98.18180799,196.21,196.2,0.03]
[1755249820725,106.1768219,196.21,196.2,0.03]
[1755249821521,70.4168219,196.21,196.2,0.03]
[1755249821746,106.1768219,196.21,196.2,0.03]
[1755249824032,71.29780166,196.21,196.2,0.03]
[1755249824232,71.94780166,196.21,196.2,0.03]
[1755249824729,69.00453901,196.21,196.2,0.03]
[1755249826142,69.00453901,196.21,196.19,10.00000001]
[1755249826425,20.99874896,196.2,196.19,10.00000001]
[1755249826930,51.14091053,196.2,196.19,1e-08]
[1755249827146,31.14091053,196.2,196.19,1e-08]
[1755249827307,36.23775048,196.2,196.19,1e-08]
[1755249827510,26.23775048,196.2,196.19,1e-08]
[1755249827810,38.72442481,196.2,196.19,1e-08]
[1755249828027,78.48442481,196.2,196.19,0.72000001]
[1755249828431,48.48442481,196.2,196.19,0.72000001]
[1755249828834,48.48442481,196.2,196.19,1e-08]
[1755249829041,44.24005614,196.2,196.19,1e-08]
[1755249829930,44.24005614,196.2,196.19,0.72000001]
[1755249830115,74.24005614,196.2,196.19,0.72000001]
[1755249831741,38.48005614,196.2,196.19,0.72000001]
[1755249831939,74.24005614,196.2,196.19,0.72000001]
[1755249832140,74.24005614,196.2,196.19,1e-08]
[1755249832544,38.48005614,196.2,196.19,1e-08]
[1755249832715,74.24005614,196.2,196.19,1e-08]
[1755249835338,82.4302751,196.2,196.19,1e-08]
[1755249835545,74.24005614,196.2,196.19,1e-08]
[1755249837139,78.01357972,196.2,196.19,1e-08]
[1755249837640,82.25794839,196.2,196.19,1e-08]
[1755249839337,90.44816735,196.2,196.19,1e-08]
[1755249839541,82.25794839,196.2,196.19,0.72000001]
[1755249840128,82.25794839,196.2,196.19,1e-08]
[1755249840331,90.44816735,196.2,196.19,1e-08]
[1755249840533,91.09816735,196.2,196.19,1e-08]
[1755249842424,106.20438292,196.2,196.19,1e-08]
[1755249842836,101.96001425,196.2,196.19,1e-08]
[1755249843037,101.96001425,196.2,196.16,0.03]
[1755249843038,8.19021896,196.18,196.16,0.03]
[1755249843242,50.84621557,196.17,196.16,0.03]
[1755249843442,59.70643453,196.17,196.16,0.03]
[1755249843626,49.69783837,196.17,196.16,0.03]
[1755249843831,64.80405394,196.17,196.16,0.03]
[1755249844033,64.13405394,196.17,196.16,0.03]
[1755249844235,94.13405394,196.17,196.16,0.03]
[1755249844542,57.82752046,196.17,196.16,0.03]
[1755249844744,101.75773942,196.17,196.16,0.03]
[1755249845748,105.531263,196.17,196.16,0.03]
[1755249845942,69.791263,196.17,196.16,0.03]
[1755249846243,41.39720906,196.17,196.16,0.7]
[1755249846449,72.89673977,196.17,196.16,0.7]
[1755249846833,37.15673977,196.17,196.16,8.89021896]
[1755249847051,72.89673977,196.17,196.16,8.89021896]
[1755249847255,42.89673977,196.17,196.16,8.89021896]
[1755249847462,7.15673977,196.17,196.16,8.89021896]
[1755249847760,42.89673977,196.17,196.16,13.98809824]
[1755249847943,39.12321619,196.17,196.16,13.98809824]
[1755249849850,3.38321619,196.17,196.16,13.98809824]
[1755249850029,39.12321619,196.17,196.16,13.98809824]
[1755249850630,3.38321619,196.17,196.16,13.98809824]
[1755249850846,39.12321619,196.17,196.16,13.98809824]
[1755249852862,39.12321619,196.17,196.16,8.89021896]
[1755249853654,39.79321619,196.17,196.16,0.03]
[1755249853965,15.24837714,196.16,196.14,0.03]
[1755249854140,76.84621557,196.15,196.14,0.03]
[1755249854461,0.67,196.15,196.14,0.03]
[1755249854648,41.50813917,196.15,196.14,0.03]
[1755249855042,49.69835813,196.15,196.14,0.03]
[1755249855347,41.50813917,196.15,196.14,0.03]
[1755249855745,48.66801006,196.15,196.14,0.03]
[1755249856165,78.66801006,196.15,196.14,0.03]
[1755249856665,86.85822902,196.15,196.14,0.03]
[1755249857161,78.66801006,196.15,196.14,0.03]
[1755249857363,86.85822902,196.15,196.14,0.03]
[1755249857662,78.66801006,196.15,196.14,0.03]
[1755249857959,86.85822902,196.15,196.14,0.03]
[1755249858150,86.85822902,196.15,196.11,0.03]
[1755249858344,5.09865905,196.13,196.11,0.03]
[1755249858658,35.74,196.12,196.11,0.03]
[1755249859973,39.12321619,196.12,196.11,0.03]
[1755249860662,44.22213521,196.12,196.11,0.03]
[1755249861676,53.08235417,196.12,196.11,0.03]
[1755249861842,83.08235417,196.12,196.11,0.03]
[1755249862766,98.18856974,196.12,196.11,0.03]
[1755249864268,98.33073131,196.12,196.09,0.03]
[1755249864473,98.33073131,196.12,196.04,0.2]
[1755249864474,41.10621557,196.06,196.04,0.2]
[1755249864681,59.05643453,196.05,196.04,0.2]
[1755249865038,59.72643453,196.05,196.0,0.2]
[1755249865246,23.29643453,196.03,196.0,0.2]
[1755249865443,115.2985961,196.03,196.02,1e-08]
[1755249865670,121.06985611,196.03,196.02,1e-08]
[1755249865878,77.01963715,196.03,196.02,1e-08]
[1755249866059,126.4973833,196.03,196.02,1e-08]
[1755249866376,126.4973833,196.03,196.0,1e-08]
[1755249866377,41.24837714,196.01,196.0,1e-08]
[1755249866672,15.10621557,195.96,195.88,0.67]
[1755249866870,82.24043792,196.01,195.93,8.19021896]
[1755249866871,30.0,196.01,195.93,8.19021896]
[1755249867052,59.19643453,196.0,195.94,8.86021896]
[1755249867251,8.19021896,195.97,195.95,0.67]
[1755249867574,8.19021896,195.99,195.96,0.67]
[1755249867743,3.38321619,196.0,195.96,0.67]
[1755249867947,3.38321619,196.0,195.99,8.19021896]
[1755249868156,3.38321619,196.0,195.97,8.19021896]
[1755249868373,44.42536826,196.0,195.93,5.77365766]
[1755249868674,30.0,195.99,195.95,8.19021896]
[1755249868867,35.98,195.98,195.96,0.67]
[1755249869078,20.20765709,196.03,195.97,8.19021896]
[1755249869257,36.02,196.02,195.98,8.19021896]
[1755249869574,36.02,196.02,195.98,8.86021896]
[1755249869764,41.79175505,196.02,195.98,8.86021896]
[1755249870074,41.79175505,196.02,195.98,0.67]
[1755249870466,3.37162425,196.01,195.98,8.86021896]
[1755249870668,36.02,196.0,195.98,8.86021896]
[1755249870869,36.02,196.0,195.98,0.67]
[1755249871048,36.02,196.0,195.97,8.19021896]
[1755249871253,36.02,196.0,195.95,0.7]
[1755249871457,36.02,196.0,195.96,0.7]
[1755249871656,41.12211232,196.0,195.96,8.89021896]
[1755249871870,41.12211232,196.0,195.96,0.7]
[1755249872064,41.12211232,196.0,195.96,8.89021896]
[1755249872260,8.85021896,195.99,195.93,8.89021896]
[1755249872482,36.02,195.98,195.93,8.89021896]
[1755249872683,36.02,195.98,195.94,0.7]
[1755249873184,36.02,195.98,195.94,8.89021896]
[1755249874384,41.7826329,195.98,195.94,8.89021896]
[1755249874680,30.0,195.97,195.95,8.19021896]
[1755249874882,30.0,195.97,195.96,8.89021896]
[1755249875182,66.08,195.97,195.96,8.89021896]
[1755249875691,36.08,195.97,195.96,8.89021896]
[1755249875888,36.08,195.97,195.96,0.7]
[1755249876295,36.08,195.97,195.96,8.89021896]
[1755249877562,36.08,195.97,195.96,0.7]
[1755249878176,36.08,195.97,195.96,8.89021896]
[1755249879274,36.08,195.97,195.96,8.19021896]
[1755249879478,41.84284055,195.97,195.93,0.03]
[1755249879688,41.84284055,195.97,195.95,8.19021896]
[1755249879892,41.84284055,195.97,195.93,0.03]
[1755249880095,41.84284055,195.97,195.95,8.19021896]
[1755249880596,41.18284055,195.97,195.95,8.19021896]
[1755249880981,41.18284055,195.97,195.93,0.03]
[1755249881380,41.84284055,195.97,195.94,8.19021896]
[1755249881692,41.18284055,195.97,195.94,8.19021896]
[1755249882077,36.08,195.97,195.94,8.19021896]
[1755249883085,41.18291109,195.97,195.94,8.19021896]
[1755249883788,41.84291109,195.97,195.93,0.03]
[1755249883986,41.84291109,195.97,195.94,8.19021896]
[1755249884168,41.84291109,195.97,195.93,8.22021896]
[1755249884169,0.66,195.96,195.93,8.22021896]
[1755249884370,36.06,195.95,195.93,8.22021896]
[1755249885074,36.06,195.95,195.93,8.92021896]
[1755249885994,36.06,195.95,195.94,8.89021896]
[1755249886997,36.04,195.95,195.94,5.80343541]
[1755249887196,36.04,195.95,195.94,8.89021896]
[1755249888376,36.04,195.95,195.94,13.9938221]
[1755249888695,36.04,195.95,195.94,5.80360314]
[1755249888904,36.04,195.95,195.94,13.9938221]
[1755249890896,131.9,195.99,195.94,13.9938221]
[1755249891201,36.04,195.98,195.95,0.7]
[1755249891504,36.02,195.97,195.95,0.7]
[1755249891699,36.04,195.96,195.95,0.7]
[1755249891895,0.06,196.0,195.95,0.7]
[1755249892206,36.02,195.99,195.95,0.7]
[1755249892404,0.06,196.0,195.98,8.19021896]
[1755249892571,0.06,196.0,195.99,8.89021896]
[1755249892769,0.06,196.0,195.99,13.99252009]
[1755249893296,36.08,196.0,195.99,13.99252009]
[1755249893700,36.08,196.0,195.99,8.89021896]
[1755249894275,36.74,196.0,195.94,0.73]
[1755249894498,36.74,196.0,195.97,8.19021896]
[1755249894705,41.84223547,196.0,195.97,8.19021896]
[1755249894886,0.66,195.99,195.97,8.19021896]
[1755249895098,0.66,195.98,195.96,8.19021896]
[1755249895397,36.72,195.97,195.94,0.03]
[1755249895799,36.06,195.97,195.94,0.03]
[1755249895982,0.66,195.96,195.94,0.03]
[1755249896388,8.19021896,195.95,195.94,0.03]
[1755249896595,36.78,195.95,195.89,0.7]
[1755249896896,9.13524037,195.95,195.93,8.19021896]
[1755249897097,36.14,195.94,195.93,8.19021896]
[1755249897601,36.16,195.94,195.93,8.19021896]
[1755249897976,39.53188174,195.94,195.93,8.19021896]
[1755249898190,39.53188174,195.94,195.9,0.73]
[1755249898397,39.53188174,195.94,195.93,8.19021896]
[1755249900292,39.53188174,195.94,195.9,0.73]
[1755249900488,40.19188174,195.94,195.93,8.19021896]
[1755249900690,39.53188174,195.94,195.93,8.19021896]
[1755249901407,3.37188174,195.94,195.93,8.19021896]
[1755249901707,39.51188174,195.94,195.93,8.84021896]
[1755249902310,3.37188174,195.94,195.93,13.94408258]
[1755249902484,4.244523,195.98,195.94,0.14216157]
[1755249902689,36.14,195.98,195.97,8.19021896]
[1755249903214,41.91265408,195.98,195.91,8.19021896]
[1755249903509,0.67,195.97,195.92,8.19021896]
[1755249903809,0.67,195.96,195.9,0.68]
[1755249903984,36.22,195.95,195.9,0.68]
[1755249904181,0.67,195.94,195.92,8.19021896]
[1755249904500,41.3234256,195.95,195.92,8.19021896]
[1755249904704,36.22,195.95,195.93,8.19021896]
[1755249905814,36.22,195.95,195.91,0.65]
[1755249905997,4.244523,195.97,195.94,8.19021896]
[1755249906200,36.2,195.96,195.93,0.65]
[1755249906386,0.67,195.95,195.93,8.19021896]
[1755249906588,41.30313063,195.96,195.9,8.22021896]
[1755249906589,0.67,195.94,195.9,8.22021896]
[1755249906788,36.87,195.93,195.9,8.22021896]
[1755249907094,36.87,195.93,195.92,0.03]
[1755249907496,36.85,195.93,195.92,0.03]
[1755249908195,36.18,195.93,195.92,0.03]
[1755249908391,9.34827178,195.94,195.92,0.03]
[1755249908594,36.18,195.93,195.92,0.03]
[1755249909017,36.18,195.93,195.92,8.22021896]
[1755249909314,36.18,195.93,195.92,8.87021896]
[1755249909615,36.16,195.93,195.92,8.87021896]
[1755249910516,36.16,195.93,195.92,8.22021896]
[1755249910812,36.16,195.93,195.92,0.03]
[1755249910997,36.16,195.93,195.92,8.22021896]
[1755249911889,36.16,195.93,195.92,8.87021896]
[1755249912211,36.16,195.93,195.92,8.22021896]
[1755249913620,36.16,195.93,195.92,0.03]
[1755249913994,36.16,195.93,195.92,8.22021896]
[1755249914495,36.16,195.93,195.92,0.03]
[1755249914721,36.16,195.93,195.92,8.22021896]
[1755249914907,36.16,195.93,195.92,0.03]
[1755249915107,39.55836905,195.93,195.92,8.22021896]
[1755249919393,39.55836905,195.93,195.92,0.03]
[1755249919802,39.55836905,195.93,195.92,8.22021896]
[1755249920410,45.33223267,195.93,195.92,0.03]
[1755249920606,39.55836905,195.93,195.92,8.22021896]
[1755249920923,39.49836905,195.93,195.92,8.87021896]
[1755249921218,39.49836905,195.93,195.92,8.22021896]
[1755249921938,45.27223267,195.93,195.92,8.22021896]
[1755249922599,45.27223267,195.93,195.92,0.03]
[1755249922805,44.60223267,195.93,195.92,0.03]
[1755249925325,45.27223267,195.93,195.92,0.03]
[1755249925934,44.60223267,195.93,195.92,0.03]
[1755249927315,45.27223267,195.93,195.92,0.03]
[1755249928938,44.60223267,195.93,195.92,0.03]
[1755249929242,45.27223267,195.93,195.92,0.03]
[1755249929637,75.27223267,195.93,195.92,0.03]
[1755249929842,45.27223267,195.93,195.92,0.03]
[1755249930336,53.46245163,195.93,195.92,0.03]
[1755249930921,53.46245163,195.93,195.9,0.03]
[1755249931134,8.88021896,195.92,195.9,0.03]
[1755249931342,36.22216157,195.91,195.9,0.03]
[1755249931520,62.79,195.91,195.9,0.03]
[1755249932032,16.69245163,195.93,195.9,0.03]
[1755249932238,9.19223267,195.93,195.9,0.03]
[1755249932441,44.42520899,195.92,195.9,0.03]
[1755249932751,30.0,195.91,195.9,0.03]
[1755249933252,35.79438466,195.91,195.9,0.03]
[1755249934050,39.19275371,195.91,195.9,0.03]
[1755249935044,33.39836905,195.91,195.9,0.03]
[1755249935846,69.49836905,195.91,195.9,0.03]
[1755249936338,75.29275371,195.91,195.9,0.03]
[1755249936729,74.60275371,195.91,195.9,0.03]
[1755249936929,69.49836905,195.91,195.9,0.03]
[1755249937359,69.47836905,195.91,195.9,0.71]
[1755249937730,39.47836905,195.91,195.9,0.71]
[1755249939546,40.16836905,195.91,195.9,0.03]
[1755249939745,39.47836905,195.91,195.9,0.03]
[1755249939937,39.47836905,195.91,195.9,8.90021896]
[1755249940257,39.47836905,195.91,195.9,8.22021896]
[1755249941451,39.47836905,195.91,195.9,8.90021896]
[1755249943551,3.39836905,195.91,195.9,8.90021896]
[1755249943857,39.45836905,195.91,195.9,8.90021896]
[1755249946944,39.45836905,195.91,195.9,0.71]
[1755249947150,39.45836905,195.91,195.9,8.90021896]
[1755249947856,40.14836905,195.91,195.9,0.03]
[1755249948159,39.45836905,195.91,195.9,0.03]
[1755249948465,45.25275371,195.91,195.9,0.03]
[1755249948957,44.56275371,195.91,195.9,0.03]
[1755249950037,39.45836905,195.91,195.9,0.03]
[1755249950746,39.45836905,195.91,195.9,8.90021896]
[1755249951746,39.45836905,195.91,195.9,8.22021896]
[1755249952750,39.45836905,195.91,195.9,8.90021896]
[1755249953150,39.45836905,195.91,195.9,8.22021896]
[1755249953539,39.45836905,195.91,195.9,0.03]
[1755249953740,39.45836905,195.91,195.9,8.22021896]
[1755249957154,39.45836905,195.91,195.9,8.90021896]
[1755249958039,39.45836905,195.91,195.9,8.22021896]
[1755249959953,39.45836905,195.91,195.9,8.90021896]
[1755249960760,39.37836905,195.91,195.9,8.90021896]
[1755249961665,3.39836905,195.91,195.9,8.90021896]
[1755249961869,39.35836905,195.91,195.9,14.00486418]
[1755249962050,39.35836905,195.91,195.9,8.90021896]
[1755249963654,39.35836905,195.91,195.9,0.71]
[1755249963855,39.35836905,195.91,195.9,8.90021896]
[1755249964774,39.35836905,195.91,195.9,14.00486418]
[1755249965469,39.35836905,195.91,195.9,5.81464522]
[1755249965670,39.35836905,195.91,195.9,14.00486418]
[1755249968169,39.31836905,195.91,195.9,14.00486418]
[1755249969259,3.39836905,195.91,195.9,14.00486418]
[1755249969665,39.31836905,195.91,195.9,14.00486418]
[1755249971766,3.39836905,195.91,195.9,14.00486418]
[1755249972581,3.39836905,195.91,195.9,5.81464522]
[1755249972882,3.39836905,195.91,195.9,14.00486418]
[1755249975455,3.39836905,195.91,195.9,14.14702575]
[1755249976063,0.06,195.92,195.9,14.14702575]
[1755249976265,0.06,195.92,195.91,8.19021896]
[1755249976467,0.06,195.92,195.91,8.88021896]
[1755249976674,0.06,195.92,195.91,13.98460362]
[1755249978282,0.06,195.92,195.91,14.12676519]
[1755249983587,0.06,195.92,195.91,8.33238053]
[1755249984382,0.06,195.92,195.91,8.19021896]
[1755249984573,36.58,195.92,195.91,8.19021896]
[1755249984770,39.97040235,195.92,195.91,5.25504126]
[1755249986667,39.97040235,195.92,195.91,8.21017501]
[1755249989687,39.97040235,195.92,195.9,0.03]
[1755249989994,39.97040235,195.92,195.9,8.24017501]
[1755249989995,0.66,195.91,195.9,8.24017501]
[1755249990572,4.05040235,195.91,195.9,8.24017501]
[1755249991596,4.05040235,195.91,195.9,0.03]
[1755249991802,4.05040235,195.91,195.9,8.24017501]
[1755249993898,4.05040235,195.91,195.9,0.03]
[1755249994083,4.05040235,195.91,195.9,8.24017501]
[1755249998899,3.39040235,195.91,195.9,8.24017501]
[1755250000407,4.11040235,195.91,195.9,8.24017501]
[1755250000713,3.39040235,195.91,195.9,8.24017501]
[1755250001994,3.39040235,195.91,195.9,0.03]
[1755250002193,3.39040235,195.91,195.9,8.24017501]
[1755250002512,4.11040235,195.91,195.9,0.03]
[1755250002815,9.21478701,195.91,195.9,0.03]
[1755250005600,17.42496202,195.91,195.9,0.03]
[1755250006197,19.47010902,195.91,195.9,0.03]
[1755250006410,49.47010902,195.91,195.9,0.03]
[1755250006608,46.51836798,195.91,195.9,0.03]
[1755250006808,46.51836798,195.91,195.88,0.03]
[1755250007009,41.83843397,195.9,195.88,0.03]
[1755250007419,30.72,195.89,195.88,0.03]
[1755250008198,35.82490581,195.89,195.88,0.03]
[1755250008807,39.21530816,195.89,195.88,0.03]
[1755250010026,39.71530816,195.89,195.88,0.03]
[1755250012136,9.71530816,195.89,195.88,0.03]
[1755250012742,39.77040235,195.89,195.88,0.03]
[1755250014136,45.59530816,195.89,195.88,0.03]
[1755250015839,39.77040235,195.89,195.88,0.03]
[1755250017846,39.27040235,195.89,195.88,0.03]
[1755250018526,44.37530816,195.89,195.88,0.03]
[1755250018725,45.09530816,195.89,195.88,0.03]
[1755250019325,44.37530816,195.89,195.88,0.03]
[1755250019945,45.09530816,195.89,195.88,0.03]
[1755250020265,50.35374213,195.89,195.88,0.03]
[1755250020428,82.39909813,195.89,195.88,0.03]
[1755250021559,214.4412597,195.89,195.88,0.03]
[1755250021857,214.35909813,195.89,195.88,0.03]
[1755250022153,209.05066416,195.89,195.88,0.03]
[1755250022357,218.53683576,195.89,195.88,0.03]
[1755250023951,214.30909813,195.89,195.88,0.03]
[1755250025748,218.53683576,195.89,195.88,0.03]
[1755250025944,219.03683576,195.89,195.88,0.03]
[1755250026357,219.17899733,195.89,195.88,0.03]
[1755250026730,222.93193011,195.89,195.88,0.03]
[1755250026930,0.14216157,195.88,195.87,0.03]
[1755250027133,66.50576196,195.88,195.87,0.03]
[1755250027341,67.17576196,195.88,195.87,0.03]
[1755250027540,69.22153596,195.88,195.87,0.03]
[1755250027941,63.82094042,195.88,195.87,0.03]
[1755250028148,69.07937439,195.88,195.87,0.03]
[1755250028744,76.69174121,195.88,195.87,0.03]
[1755250029946,112.65174121,195.88,195.87,0.03]
[1755250030461,112.79390278,195.88,195.87,0.03]
[1755250030959,86.79390278,195.88,195.87,1e-08]
[1755250031144,50.83390278,195.88,195.87,1e-08]
[1755250031653,86.85390278,195.88,195.87,1e-08]
[1755250031861,82.63193831,195.88,195.87,1e-08]
[1755250033448,31.40059554,195.86,195.85,1e-08]
[1755250033642,102.54628327,195.86,195.85,1e-08]
[1755250033855,103.21628327,195.86,195.85,1e-08]
[1755250034162,106.60668562,195.86,195.85,1e-08]
[1755250034365,108.65266962,195.86,195.85,1e-08]
[1755250035035,112.40207441,195.86,195.85,1e-08]
[1755250038156,0.14216157,195.85,195.82,0.03]
[1755250038461,5.25843397,195.83,195.82,0.03]
[1755250038961,5.92843397,195.83,195.82,0.03]
[1755250039143,5.25843397,195.83,195.82,0.03]
[1755250039546,8.64883632,195.83,195.82,0.03]
[1755250039741,15.80149921,195.83,195.82,0.03]
[1755250039945,16.47149921,195.83,195.82,0.03]
[1755250040358,15.80149921,195.83,195.82,0.03]
[1755250040656,78.47149921,195.83,195.82,0.03]
[1755250041242,73.21306524,195.83,195.82,0.03]